bitfinex/quotes_SOLUSD_20241020
["timestamp","ask_amount","ask_price","bid_price","bid_amount"]
[1729389840312,6.56596053,159.09,158.99,16.5344]
[1729389840313,6.56596053,159.09,159.04,15.7189]
[1729389840520,23.776884,159.11,159.04,15.7189]
[1729389841024,6.286,159.09,159.04,22.0065]
[1729389843323,29.21485288,159.12,159.04,22.0065]
[1729389843526,6.2854,159.1,159.04,22.0065]
[1729389844317,6.2854,159.1,159.05,6.287]
[1729389862056,6.2854,159.1,159.04,32.2533]
[1729389862262,6.2854,159.1,159.06,5.6582]
[1729389865968,5.6565,159.11,159.06,5.6582]
[1729389866650,5.6561,159.12,159.07,5.6578]
[1729389867472,5.6561,159.12,159.04,16.5344]
[1729389867473,5.6552,159.15,159.09,5.6568]
[1729389867684,29.21328232,159.16,159.05,20.0]
[1729389867685,16.0092,159.16,159.05,20.0]
[1729389867854,14.1346,159.19,159.1,5.6566]
[1729389868171,5.6549,159.16,159.1,5.6566]
[1729389869346,29.431884,159.15,159.1,5.6566]
[1729389872774,5.655,159.15,159.1,5.6566]
[1729389873672,23.776884,159.18,159.09,19.7994]
[1729389873866,5.6553,159.15,159.09,19.7994]
[1729389888680,5.6547,159.16,159.06,28.2912]
[1729389888815,23.776884,159.18,159.06,28.2912]
[1729389889012,5.6551,159.15,159.1,5.6565]
[1729389891124,23.776884,159.18,159.1,5.6565]
[1729389892420,5.6554,159.14,159.1,5.6565]
[1729389902419,5.6546,159.17,159.12,5.656]
[1729389902915,21.5483,159.2,159.13,5.6557]
[1729389902916,5.654,159.18,159.13,5.6557]
[1729389903292,5.6534,159.2,159.14,5.655]
[1729389904304,5.6537,159.19,159.14,5.655]
[1729389907342,9.37756653,159.21,159.11,14.1411]
[1729389907848,5.6545,159.17,159.12,5.656]
[1729389910668,5.6553,159.15,159.1,5.6565]
[1729389912744,5.6553,159.15,159.09,21.5488]
[1729389914054,5.6557,159.13,159.08,19.8011]
[1729389925926,5.6557,159.13,159.09,5.6571]
[1729389926348,5.6561,159.12,159.08,14.1436]
[1729389932352,5.6561,159.12,159.08,19.8011]
[1729389934336,14.1358,159.17,159.08,19.8011]
[1729389934543,5.6558,159.13,159.08,19.8011]
[1729389953376,23.776884,159.14,159.05,30.2475]
[1729389953589,23.776884,159.14,159.05,35.906]
[1729389954082,5.6567,159.11,159.05,35.906]
[1729389954288,5.657,159.1,159.05,30.2475]
[1729389954589,5.6564,159.11,159.06,5.6582]
[1729389954881,23.776884,159.14,159.05,16.1013]
[1729389955088,5.656,159.13,159.07,5.6575]
[1729389955268,23.776884,159.12,159.07,5.6575]
[1729389964888,23.776884,159.12,159.06,14.1449]
[1729389965095,5.6575,159.08,159.03,5.6589]
[1729389965310,23.776884,159.12,159.04,5.6588]
[1729389965499,5.6571,159.1,159.05,5.6585]
[1729389967989,23.776884,159.12,159.01,16.2321]
[1729389968297,29.433284,159.12,159.06,5.6579]
[1729389975676,5.6566,159.11,159.06,5.6579]
[1729389977898,5.6566,159.11,159.05,14.1457]
[1729389978107,5.6566,159.11,159.07,5.6578]
[1729389983406,23.776884,159.12,159.08,5.6573]
[1729389984609,23.776884,159.13,159.09,5.6568]
[1729389984908,5.6546,159.16,159.11,5.6563]
[1729389986814,23.776884,159.15,159.11,5.6563]
[1729389987617,23.74545426,159.15,159.11,5.6563]
[1729389995001,29.40045426,159.15,159.11,5.6563]
[1729390002631,5.6558,159.13,159.08,5.6574]
[1729390005639,23.74545426,159.15,159.08,5.6574]
[1729390005935,5.6557,159.13,159.08,5.6573]
[1729390008314,23.74545426,159.15,159.07,14.1443]
[1729390008520,5.6553,159.14,159.07,19.802]
[1729390008844,5.6567,159.11,159.05,5.6585]
[1729390009019,29.433984,159.1,159.05,5.6585]
[1729390010915,5.6573,159.09,159.04,35.0517]
[1729390011216,23.776884,159.1,159.05,5.6585]
[1729390019546,23.776884,159.1,159.04,29.3929]
[1729390019739,23.776884,159.1,159.05,5.6585]
[1729390025657,23.776884,159.1,159.04,15.2458]
[1729390025857,25.92603418,159.14,159.04,15.2458]
[1729390025858,5.6557,159.13,159.07,5.6575]
[1729390027154,23.776884,159.12,159.07,5.6575]
[1729390027935,23.776884,159.12,159.08,5.6575]
[1729390031240,23.776884,159.13,159.09,5.6569]
[1729390031849,21.9177,159.18,159.12,5.6561]
[1729390032032,29.431284,159.17,159.11,5.6562]
[1729390032237,23.776884,159.17,159.11,5.6562]
[1729390032437,23.776884,159.15,159.11,5.6562]
[1729390033758,23.776884,159.15,159.12,5.656]
[1729390033947,23.776884,159.15,159.1,14.1415]
[1729390034258,23.776884,159.15,159.11,5.6564]
[1729390037269,29.431884,159.15,159.11,5.6564]
[1729390037563,29.431884,159.15,159.1,19.7983]
[1729390050673,16.2638,159.18,159.1,14.1415]
[1729390050966,5.6547,159.16,159.11,5.6564]
[1729390056978,5.6551,159.15,159.1,19.7983]
[1729390061574,23.776884,159.17,159.08,21.2666]
[1729390061575,5.656,159.13,159.08,21.2666]
[1729390062687,5.6562,159.12,159.07,19.8023]
[1729390064269,23.776884,159.17,159.07,19.8023]
[1729390064270,23.776884,159.17,159.07,28.2894]
[1729390064588,23.776884,159.15,159.1,5.6566]
[1729390064776,23.776884,159.14,159.1,5.6566]
[1729390067579,29.432284,159.14,159.09,5.6571]
[1729390076295,5.6557,159.13,159.09,5.6571]
[1729390083605,5.6554,159.14,159.1,5.6567]
[1729390083776,29.431884,159.15,159.1,5.6567]
[1729390102418,23.776884,159.15,159.09,29.9603]
[1729390102598,23.776884,159.13,159.09,14.1428]
[1729390104221,23.776884,159.13,159.09,19.7997]
[1729390109206,23.776884,159.13,159.09,14.1428]
[1729390109529,23.776884,159.14,159.1,5.6567]
[1729390122123,23.776884,159.14,159.09,14.1428]
[1729390122447,23.776884,159.13,159.09,19.7998]
[1729390136857,9.14447077,159.16,159.07,28.2894]
[1729390137057,23.776884,159.15,159.1,19.798]
[1729390140855,23.776884,159.15,159.08,5.6572]
[1729390141070,5.6553,159.14,159.08,5.6572]
[1729390141370,23.776884,159.13,159.08,5.6572]
[1729390143559,23.776884,159.13,159.09,5.6571]
[1729390144663,5.6564,159.11,159.05,15.8868]
[1729390144860,23.776884,159.11,159.07,5.6576]
[1729390145960,23.776884,159.11,159.08,5.6574]
[1729390146372,23.776884,159.12,159.08,5.6574]
[1729390150874,23.776884,159.12,159.05,15.8868]
[1729390151081,23.776884,159.13,159.09,5.6571]
[1729390151460,5.655,159.15,159.1,5.6565]
[1729390151672,23.776884,159.14,159.1,5.6565]
[1729390151962,5.655,159.15,159.06,6.1795]
[1729390151963,23.776884,159.15,159.06,6.1795]
[1729390152172,23.776884,159.15,159.1,5.6564]
[1729390153378,23.776884,159.15,159.11,5.6564]
[1729390174581,9.14447077,159.16,159.13,14.1389]
[1729390174784,9.14447077,159.16,159.12,5.6559]
[1729390175897,23.776884,159.15,159.12,5.6559]
[1729390176212,23.776884,159.15,159.11,5.6564]
[1729390177484,29.431984,159.15,159.1,19.7986]
[1729390177790,23.776884,159.15,159.11,5.6562]
[1729390178914,23.776884,159.15,159.12,5.656]
[1729390179589,23.776884,159.15,159.13,5.6556]
[1729390180204,23.776884,159.15,159.12,19.796]
[1729390184419,9.14447077,159.16,159.1,6.3348]
[1729390184614,9.14447077,159.16,159.14,5.655]
[1729390184914,23.776884,159.18,159.14,5.655]
[1729390194032,23.776884,159.18,159.11,14.1411]
[1729390194242,29.430984,159.18,159.13,5.6557]
[1729390196026,23.776884,159.18,159.14,5.6553]
[1729390196922,23.776884,159.18,159.1,6.3348]
[1729390197245,23.776884,159.18,159.14,5.655]
[1729390200840,23.276884,159.18,159.14,5.655]
[1729390225257,5.6528,159.22,159.16,5.6544]
[1729390225566,5.6529,159.21,159.16,5.6544]
[1729390226567,23.776884,159.2,159.16,5.6544]
[1729390231668,23.776884,159.21,159.17,5.6542]
[1729390232567,23.776884,159.21,159.18,5.6539]
[1729390232767,23.776884,159.22,159.18,5.6539]
[1729390235751,23.776884,159.22,159.17,14.1357]
[1729390235949,23.776884,159.22,159.18,5.6537]
[1729390236168,23.776884,159.22,159.17,14.1357]
[1729390236475,23.776884,159.22,159.18,5.6539]
[1729390241172,23.276884,159.22,159.18,5.6539]
[1729390265312,23.276884,159.22,159.16,15.8151]
[1729390265503,23.276884,159.22,159.17,5.6542]
[1729390265709,28.929384,159.22,159.17,5.6542]
[1729390265893,28.929384,159.22,159.18,5.6539]
[1729390266487,23.276884,159.22,159.18,5.6539]
[1729390271406,16.1863,159.25,159.16,15.8151]
[1729390271614,5.6518,159.24,159.19,5.6536]
[1729390271833,23.776884,159.23,159.19,5.6536]
[1729390286335,5.6518,159.24,159.19,5.6536]
[1729390288125,10.87534179,159.27,159.18,6.2436]
[1729390288324,16.52614179,159.27,159.2,14.1322]
[1729390288515,16.52614179,159.27,159.22,5.6525]
[1729390289435,23.776884,159.26,159.22,5.6525]
[1729390310660,6.1222194,159.27,159.22,5.6525]
[1729390310839,0.4714194,159.27,159.21,15.0473]
[1729390311040,0.4714194,159.27,159.23,5.6521]
[1729390316554,0.4714194,159.27,159.21,15.0473]
[1729390316863,0.4714194,159.27,159.23,19.7823]
[1729390317447,0.4714194,159.27,159.24,14.1294]
[1729390317780,0.4714194,159.27,159.25,5.6511]
[1729390322061,0.4714194,159.27,159.24,14.1294]
[1729390322281,6.1224194,159.27,159.22,5.6523]
[1729390323458,5.6512,159.26,159.21,20.7001]
[1729390324575,5.6512,159.26,159.21,5.6528]
[1729390325982,5.6515,159.25,159.2,19.7858]
[1729390331283,0.4714194,159.27,159.18,22.8378]
[1729390331491,5.6525,159.23,159.18,16.5942]
[1729390331666,5.6535,159.2,159.14,36.4881]
[1729390333471,5.6535,159.2,159.15,5.655]
[1729390333865,23.776884,159.19,159.14,14.1383]
[1729390334067,29.430784,159.19,159.14,14.1383]
[1729390336280,29.430784,159.19,159.14,19.7936]
[1729390340777,23.776884,159.19,159.1,44.5889]
[1729390340970,5.6542,159.18,159.13,5.6556]
[1729390341699,23.776884,159.19,159.15,5.6549]
[1729390344169,23.776884,159.21,159.12,20.0]
[1729390344493,23.776884,159.21,159.17,5.654]
[1729390345689,23.776884,159.21,159.16,14.1366]
[1729390345895,23.776884,159.19,159.16,14.1366]
[1729390346080,23.776884,159.19,159.12,20.0]
[1729390346276,5.654,159.18,159.13,19.7948]
[1729390347176,23.776884,159.19,159.13,14.1391]
[1729390347365,23.776884,159.19,159.14,5.6551]
[1729390348987,5.6539,159.18,159.14,5.6551]
[1729390351276,23.776884,159.19,159.14,5.6551]
[1729390356098,29.430584,159.19,159.14,5.6551]
[1729390362205,23.776884,159.17,159.13,19.7947]
[1729390363909,23.776884,159.17,159.13,14.1391]
[1729390364083,29.431184,159.17,159.13,14.1391]
[1729390364278,23.776884,159.17,159.06,15.8558]
[1729390364484,23.776884,159.13,159.06,15.8558]
[1729390364782,23.776884,159.13,159.09,5.657]
[1729390366206,17.29398615,159.18,159.11,5.6561]
[1729390366379,23.776884,159.17,159.06,15.8558]
[1729390366582,23.776884,159.17,159.08,20.0]
[1729390366787,29.431184,159.17,159.11,19.7964]
[1729390370000,23.776884,159.15,159.11,19.7964]
[1729390370396,23.776884,159.15,159.11,14.1403]
[1729390370586,5.6557,159.14,159.09,5.657]
[1729390370791,23.776884,159.13,159.09,5.657]
[1729390371207,23.776884,159.13,159.08,14.1436]
[1729390371405,29.432684,159.13,159.08,19.8011]
[1729390381012,23.776884,159.13,159.09,5.657]
[1729390384812,23.776884,159.13,159.08,14.1436]
[1729390384813,23.776884,159.13,159.08,19.8011]
[1729390385119,29.432584,159.13,159.08,19.8011]
[1729390385334,23.776884,159.14,159.09,19.7995]
[1729390386203,16.2009,159.18,159.07,20.0]
[1729390386401,0.1,159.21,159.12,5.6559]
[1729390386402,5.6546,159.17,159.12,5.6559]
[1729390386810,5.6534,159.2,159.12,5.6561]
[1729390387010,5.6534,159.2,159.11,16.199]
[1729390387011,5.6534,159.2,159.14,5.655]
[1729390388423,29.430584,159.19,159.14,5.655]
[1729390389121,5.6531,159.21,159.15,5.6547]
[1729390389318,5.6533,159.2,159.15,5.6547]
[1729390390412,23.776884,159.19,159.15,5.6547]
[1729390394022,14.01966137,159.24,159.11,16.199]
[1729390394227,23.776884,159.21,159.17,5.6543]
[1729390394417,23.776884,159.21,159.11,16.199]
[1729390394613,23.776884,159.23,159.19,5.6535]
[1729390394819,7.4596828,159.24,159.21,5.6527]
[1729390395024,7.4596828,159.24,159.2,14.133]
[1729390395347,7.4596828,159.24,159.17,16.4601]
[1729390395633,7.4596828,159.24,159.23,5.6522]
[1729390395934,0.4714194,159.27,159.23,5.6522]
[1729390396767,24.2483034,159.27,159.23,5.6522]
[1729390397139,0.4714194,159.27,159.26,5.6511]
[1729390402874,0.4714194,159.27,159.24,20.0]
[1729390403864,0.4714194,159.27,159.23,22.1122]
[1729390404064,0.4714194,159.27,159.22,5.6525]
[1729390404272,6.1224194,159.27,159.21,19.7844]
[1729390405073,5.6511,159.26,159.21,14.1315]
[1729390407769,0.4714194,159.27,159.19,22.1136]
[1729390407953,23.776884,159.25,159.19,22.1136]
[1729390409043,23.776884,159.25,159.17,14.135]
[1729390409271,5.6523,159.23,159.17,19.7893]
[1729390409773,5.6528,159.22,159.17,14.135]
[1729390410879,5.6528,159.22,159.17,19.7893]
[1729390411370,5.6521,159.24,159.18,5.6539]
[1729390411754,23.776884,159.23,159.18,5.6539]
[1729390414269,29.429084,159.23,159.18,5.6539]
[1729390416559,23.776884,159.23,159.17,14.135]
[1729390416766,5.6532,159.21,159.15,6.11878866]
[1729390416967,5.6532,159.21,159.15,5.6549]
[1729390418958,5.6532,159.21,159.16,5.6544]
[1729390420890,39.896484,159.23,159.15,14.1371]
[1729390421060,39.896484,159.23,159.12,0.46397612]
[1729390421278,5.6538,159.19,159.13,5.6557]
[1729390421468,5.6538,159.19,159.11,22.35025091]
[1729390421663,5.6538,159.19,159.14,5.6553]
[1729390423087,23.776884,159.21,159.12,14.1402]
[1729390423088,5.6544,159.17,159.12,19.7962]
[1729390423293,23.776884,159.21,159.12,14.1402]
[1729390423476,23.776884,159.18,159.13,5.6554]
[1729390431078,16.1196,159.23,159.11,22.35025091]
[1729390431285,16.1196,159.23,159.15,5.6548]
[1729390431286,23.776884,159.22,159.15,5.6548]
[1729390431483,5.6525,159.22,159.16,5.6543]
[1729390432971,23.776884,159.21,159.16,5.6543]
[1729390438902,5.6529,159.21,159.16,5.6543]
[1729390442914,23.776884,159.22,159.15,14.1369]
[1729390443088,23.776884,159.22,159.11,22.35025091]
[1729390443415,23.776884,159.2,159.11,42.14715091]
[1729390443713,5.6546,159.17,159.11,42.14715091]
[1729390445206,23.776884,159.2,159.11,22.35025091]
[1729390445436,23.776884,159.18,159.14,5.6553]
[1729390447410,5.6539,159.19,159.14,5.6553]
[1729390457707,23.776884,159.2,159.15,5.6546]
[1729390457904,5.6532,159.2,159.15,19.7923]
[1729390477539,23.776884,159.22,159.14,5.6552]
[1729390477857,5.6539,159.19,159.14,5.6552]
[1729390480546,5.6531,159.21,159.16,5.6545]
[1729390480943,5.6533,159.2,159.15,19.7922]
[1729390488045,23.776884,159.22,159.15,19.7922]
[1729390488254,5.6537,159.19,159.15,14.1373]
[1729390506382,23.776884,159.22,159.12,28.2805]
[1729390506587,29.429684,159.22,159.17,5.6541]
[1729390507499,5.6522,159.23,159.18,5.6539]
[1729390514078,23.776884,159.22,159.16,14.1359]
[1729390514401,29.429684,159.22,159.16,19.7903]
[1729390518905,5.6528,159.22,159.16,14.1359]
[1729390519212,5.6528,159.22,159.17,5.654]
[1729390530421,5.653,159.21,159.16,14.1359]
[1729390530596,5.653,159.21,159.16,19.7904]
[1729390531118,23.776884,159.24,159.16,14.1359]
[1729390531616,5.6532,159.21,159.16,14.1359]
[1729390536012,5.6532,159.21,159.16,19.7905]
[1729390558170,5.6536,159.19,159.14,5.6552]
[1729390558337,5.6536,159.19,159.12,28.2805]
[1729390558540,5.6536,159.19,159.15,5.6549]
[1729390559358,23.776884,159.22,159.15,5.6549]
[1729390559539,5.6533,159.2,159.15,5.6549]
[1729390562238,5.653,159.21,159.16,5.6545]
[1729390569261,5.6529,159.21,159.13,19.795]
[1729390569453,5.6529,159.21,159.16,5.6544]
[1729390571063,23.776884,159.22,159.12,20.0]
[1729390571377,14.28439581,159.23,159.18,5.6537]
[1729390571883,8.63219581,159.23,159.18,19.788]
[1729390573074,14.28439581,159.23,159.18,19.788]
[1729390573882,5.6528,159.22,159.18,14.1344]
[1729390574389,5.6528,159.22,159.17,5.6541]
[1729390578950,5.6532,159.2,159.15,19.792]
[1729390579153,23.776884,159.22,159.13,5.6554]
[1729390579478,5.6538,159.19,159.14,5.6553]
[1729390585684,23.776884,159.2,159.12,15.3071]
[1729390585861,5.6531,159.21,159.16,5.6543]
[1729390586061,8.63219581,159.23,159.18,5.6539]
[1729390586258,5.6525,159.22,159.16,5.6544]
[1729390586767,5.6525,159.22,159.17,5.6542]
[1729390591985,5.6525,159.22,159.13,28.2779]
[1729390592155,5.6525,159.22,159.17,5.654]
[1729390597171,5.6525,159.22,159.18,5.6539]
[1729390597586,8.63219581,159.23,159.19,5.6533]
[1729390600293,8.63219581,159.23,159.18,14.1348]
[1729390600584,8.63219581,159.23,159.2,5.6532]
[1729390600895,8.63219581,159.23,159.21,5.6526]
[1729390601195,8.63219581,159.23,159.2,14.1331]
[1729390615103,5.6519,159.24,159.2,14.1331]
[1729390615988,22.4325194,159.27,159.2,14.1331]
[1729390616194,0.4714194,159.27,159.22,5.6522]
[1729390616608,0.4714194,159.27,159.24,5.6517]
[1729390617116,0.4714194,159.27,159.19,28.2681]
[1729390617117,0.4714194,159.27,159.26,5.6511]
[1729390617619,0.4714194,159.27,159.25,14.1283]
[1729390617794,6.1223194,159.27,159.22,14.1313]
[1729390618135,6.1223194,159.27,159.22,19.7836]
[1729390618310,5.6512,159.26,159.22,14.1313]
[1729390618616,5.6516,159.25,159.2,5.6529]
[1729390624307,23.776884,159.24,159.19,16.5763]
[1729390624515,5.6522,159.23,159.18,19.7882]
[1729390634551,23.776884,159.24,159.18,14.1344]
[1729390634848,29.428784,159.24,159.19,5.6535]
[1729390641461,0.4714194,159.27,159.16,20.0]
[1729390641662,23.776884,159.25,159.21,5.6527]
[1729390643840,23.776884,159.25,159.15,44.9515]
[1729390644147,0.4714194,159.27,159.22,5.6522]
[1729390644347,0.4714194,159.27,159.19,26.5516]
[1729390644555,0.4714194,159.27,159.24,5.6516]
[1729390647749,0.4714194,159.27,159.19,26.5516]
[1729390648073,6.1222194,159.27,159.22,5.6522]
[1729390649371,0.4714194,159.27,159.23,5.6521]
[1729390650571,0.4714194,159.27,159.24,20.0]
[1729390650776,0.4714194,159.27,159.26,5.6511]
[1729390653853,0.4714194,159.27,159.25,14.1287]
[1729390654391,0.4714194,159.27,159.25,19.7801]
[1729390654874,0.4714194,159.27,159.23,21.4381]
[1729390655075,0.4714194,159.27,159.23,5.6519]
[1729390657877,6.1222194,159.27,159.22,19.7836]
[1729390658277,5.6511,159.26,159.22,19.7836]
[1729390658479,23.776884,159.25,159.2,5.6529]
[1729390664173,23.776884,159.25,159.19,28.2677]
[1729390664363,23.776884,159.26,159.22,14.1313]
[1729390665891,29.427984,159.26,159.22,14.1313]
[1729390669865,5.6519,159.24,159.19,19.7874]
[1729390670080,23.776884,159.25,159.21,5.6526]
[1729390670303,23.776884,159.25,159.18,16.0676]
[1729390670304,24.2483034,159.27,159.24,5.6518]
[1729390670671,0.4714194,159.27,159.24,5.6518]
[1729390672269,24.2483034,159.27,159.23,5.6521]
[1729390681501,0.4714194,159.27,159.24,5.6517]
[1729390682080,0.4714194,159.27,159.23,14.1304]
[1729390682280,6.1222194,159.27,159.23,14.1304]
[1729390682906,5.6511,159.26,159.22,5.6524]
[1729390683512,0.4714194,159.27,159.2,14.1329]
[1729390684522,5.6511,159.26,159.21,5.6528]
[1729390690403,0.4714194,159.27,159.19,6.6177]
[1729390690609,23.776884,159.26,159.22,5.6522]
[1729390691823,24.2483034,159.27,159.23,5.6521]
[1729390694310,0.4714194,159.27,159.19,6.6177]
[1729390694507,0.4714194,159.27,159.26,5.6511]
[1729390699227,0.4714194,159.27,159.24,14.1287]
[1729390700837,0.4714194,159.27,159.25,5.6514]
[1729390704349,0.4714194,159.27,159.24,14.1287]
[1729390710134,0.4714194,159.27,159.23,5.6519]
[1729390710447,0.4714194,159.27,159.21,14.1319]
[1729390710448,5.6512,159.26,159.21,19.7847]
[1729390711836,24.2483034,159.27,159.21,14.1319]
[1729390712046,5.6516,159.25,159.21,14.1319]
[1729390717065,5.6516,159.25,159.21,19.7847]
[1729390722560,23.776884,159.23,159.18,14.1346]
[1729390722740,23.776884,159.23,159.19,5.6534]
[1729390724571,23.776884,159.24,159.2,5.6532]
[1729390724865,24.2483034,159.27,159.22,5.6523]
[1729390725166,6.1222194,159.27,159.22,5.6523]
[1729390726240,0.4714194,159.27,159.23,5.652]
[1729390726562,24.2483034,159.27,159.23,5.652]
[1729390743962,24.2483034,159.27,159.24,5.6516]
[1729390743963,0.4714194,159.27,159.24,5.6516]
[1729390745370,0.4714194,159.27,159.2,6.0206]
[1729390745573,0.4714194,159.27,159.25,5.6514]
[1729390752473,0.4714194,159.27,159.26,5.6511]
[1729390762502,0.4714194,159.27,159.25,14.1283]
[1729390762697,0.4714194,159.27,159.25,19.7797]
[1729390773632,0.4714194,159.27,159.26,5.6511]
[1729390782030,0.4714194,159.27,159.25,14.1283]
[1729390782340,0.4714194,159.27,159.23,5.6521]
[1729390798051,0.4714194,159.27,159.26,5.6511]
[1729390805571,0.4714194,159.27,159.26,25.6511]
[1729390807575,0.4714194,159.27,159.26,5.6511]
[1729390807775,0.4714194,159.27,159.26,25.6511]
[1729390811755,0.4714194,159.27,159.26,5.6511]
[1729390821576,0.4714194,159.27,159.25,5.6514]
[1729390822249,0.4714194,159.27,159.26,5.6511]
[1729390837390,0.4714194,159.27,159.25,19.78]
[1729390839505,0.4714194,159.27,159.21,42.3956]
[1729390839706,0.4714194,159.27,159.21,28.2637]
[1729390839903,0.4714194,159.27,159.23,5.6519]
[1729390842583,0.4714194,159.27,159.22,14.1313]
[1729390842787,5.6514,159.25,159.2,5.6531]
[1729390843090,6.1224194,159.27,159.21,5.6527]
[1729390843293,23.776884,159.26,159.22,5.6525]
[1729390847947,23.776884,159.26,159.22,5.1525]
[1729390862859,24.2483034,159.27,159.24,5.6518]
[1729390863040,0.4714194,159.27,159.24,5.6518]
[1729390864464,0.4714194,159.27,159.25,5.6514]
[1729390866943,23.776884,159.29,159.25,5.6514]
[1729390867744,35.52320449,159.33,159.21,22.7369]
[1729390868077,29.426184,159.32,159.26,5.6508]
[1729390868240,29.426184,159.32,159.25,14.128]
[1729390868443,29.426184,159.32,159.27,5.6506]
[1729390873076,23.776884,159.32,159.22,28.2626]
[1729390873365,23.776884,159.32,159.22,20.0]
[1729390874370,29.425884,159.32,159.24,28.2592]
[1729390874539,29.425884,159.32,159.26,5.6508]
[1729390879559,23.776884,159.32,159.26,5.6508]
[1729390879759,5.6496,159.31,159.26,5.6508]
[1729390881361,23.776884,159.32,159.26,5.6508]
[1729390881561,23.776884,159.3,159.26,5.6508]
[1729390900891,23.776884,159.3,159.25,14.128]
[1729390901192,5.6501,159.29,159.25,14.128]
[1729390902285,5.6504,159.28,159.22,19.7835]
[1729390902493,5.6504,159.28,159.22,14.131]
[1729390903388,5.6504,159.28,159.23,5.6521]
[1729390916506,23.776884,159.27,159.22,19.7835]
[1729390916991,23.776884,159.27,159.22,14.131]
[1729390917189,5.6504,159.28,159.23,5.6519]
[1729390917505,5.649,159.32,159.22,20.0]
[1729390918002,5.6494,159.31,159.25,19.7791]
[1729390919015,23.776884,159.3,159.25,19.7791]
[1729390924727,23.776884,159.3,159.25,14.128]
[1729390924929,29.427484,159.28,159.22,5.6522]
[1729390925131,5.6506,159.28,159.21,36.8688]
[1729390925805,5.6506,159.28,159.22,5.6525]
[1729390927308,23.776884,159.31,159.22,5.6525]
[1729390927510,23.776884,159.27,159.22,5.6525]
[1729390927920,5.6511,159.26,159.21,42.5217]
[1729390928505,5.6515,159.25,159.21,30.4633]
[1729390928724,5.6515,159.25,159.21,14.1319]
[1729390929425,5.6515,159.25,159.19,6.54934348]
[1729390929426,29.428984,159.24,159.19,6.54934348]
[1729390929626,5.6525,159.23,159.19,6.54934348]
[1729390929830,5.6525,159.23,159.18,5.6536]
[1729390930032,5.6527,159.22,159.17,39.6516509]
[1729390931237,5.6527,159.22,159.17,45.3057509]
[1729390932233,23.776884,159.21,159.17,23.3093509]
[1729390932439,5.6529,159.21,159.15,5.6546]
[1729390932633,23.776884,159.2,159.15,5.6546]
[1729390932933,23.776884,159.21,159.16,19.791]
[1729390935331,23.776884,159.21,159.17,5.6542]
[1729390939525,23.776884,159.24,159.18,5.6536]
[1729390939724,23.776884,159.22,159.18,5.6536]
[1729390941248,23.776884,159.22,159.17,14.1354]
[1729390941447,29.429484,159.22,159.17,19.7896]
[1729390945144,23.776884,159.22,159.17,14.1354]
[1729390945435,23.776884,159.22,159.18,5.6539]
[1729390974674,23.776884,159.22,159.17,14.1354]
[1729390974982,29.429484,159.22,159.17,19.7896]
[1729390975855,23.776884,159.22,159.18,5.6538]
[1729390980671,23.776884,159.22,159.17,14.1354]
[1729390980672,23.776884,159.24,159.2,5.6529]
[1729390982680,29.428984,159.24,159.19,19.7868]
[1729390987784,29.428984,159.24,159.19,14.1334]
[1729390987785,23.776884,159.24,159.19,14.1334]
[1729390987983,29.429384,159.22,159.18,5.6539]
[1729390988283,23.776884,159.22,159.18,5.6539]
[1729390991988,23.776884,159.22,159.16,14.1364]
[1729390992172,23.776884,159.2,159.16,19.7909]
[1729390995962,29.430184,159.2,159.16,14.1364]
[1729390996681,23.776884,159.2,159.14,14.1384]
[1729390996871,23.776884,159.2,159.16,5.6546]
[1729390999688,23.776884,159.2,159.14,14.1384]